bitfinex-derivatives/quotes_SOLF0:USTF0_20250929
["timestamp","ask_amount","ask_price","bid_price","bid_amount"]
[1759128683632,7.53,208.56,208.5,8.0]
[1759128684036,7.79,208.52,208.48,23.27094825]
[1759128684435,7.79,208.56,208.48,23.27094825]
[1759128685636,4.3146,208.52,208.48,15.32094825]
[1759128685829,4.3146,208.52,208.49,7.95]
[1759128686234,12.1046,208.52,208.49,7.95]
[1759128687542,7.79,208.51,208.48,15.32094825]
[1759128688036,4.3146,208.52,208.48,23.27094825]
[1759128688425,4.3146,208.52,208.49,7.95]
[1759128688631,4.314,208.54,208.48,15.32094825]
[1759128688835,4.314,208.54,208.5,1.29352573]
[1759128689031,4.314,208.54,208.51,7.95]
[1759128690231,4.314,208.54,208.48,14.02742252]
[1759128690232,7.79,208.52,208.48,15.32094825]
[1759128690432,4.3143,208.53,208.49,7.95]
[1759128690632,7.79,208.56,208.49,7.95]
[1759128692641,4.3144,208.53,208.49,7.95]
[1759128693138,4.3144,208.53,208.5,7.95]
[1759128693341,4.3144,208.53,208.48,15.68770645]
[1759128693536,4.3144,208.53,208.49,7.95]
[1759128693736,4.3144,208.53,208.48,15.68770645]
[1759128694236,4.3144,208.53,208.49,7.95]
[1759128694743,4.3144,208.53,208.48,15.68770645]
[1759128695046,4.3144,208.53,208.49,7.95]
[1759128695244,4.3144,208.53,208.48,15.68770645]
[1759128695439,4.3138,208.55,208.52,1.29352573]
[1759128695641,4.3138,208.55,208.53,7.95]
[1759128695940,4.3134,208.57,208.53,7.95]
[1759128696543,4.3134,208.57,208.52,1.29352573]
[1759128696746,4.3137,208.56,208.53,7.95]
[1759128700243,12.1037,208.56,208.53,7.95]
[1759128701442,4.3137,208.56,208.53,7.95]
[1759128701650,4.3137,208.56,208.52,1.29352573]
[1759128702051,4.3137,208.56,208.53,7.95]
[1759128705352,4.3132,208.58,208.54,1.29352573]
[1759128705557,4.3132,208.58,208.55,7.95]
[1759128705753,7.79,208.6,208.55,7.95]
[1759128705950,7.79,208.57,208.51,7.95]
[1759128706152,7.79,208.55,208.48,15.65762341]
[1759128706352,12.1047,208.51,208.47,7.95]
[1759128706553,7.79,208.5,208.46,1.29352573]
[1759128706749,7.79,208.5,208.46,9.24352573]
[1759128707152,7.79,208.53,208.46,22.2419879]
[1759128707356,7.79,208.53,208.46,7.95]
[1759128707647,12.1049,208.5,208.46,7.95]
[1759128709459,7.79,208.49,208.46,7.95]
[1759128711257,12.1044,208.53,208.48,1.29352573]
[1759128711456,7.79,208.53,208.48,1.29352573]
[1759128711759,7.79,208.53,208.49,7.95]
[1759128712155,4.3145,208.52,208.49,7.95]
[1759128712760,4.314,208.54,208.48,1.29352573]
[1759128713556,12.104,208.54,208.49,7.95]
[1759128713961,4.314,208.54,208.49,7.95]
[1759128714161,4.314,208.54,208.48,1.29352573]
[1759128714162,12.034,208.54,208.48,9.24352573]
[1759128717362,4.3144,208.53,208.48,9.24352573]
[1759128717562,12.0344,208.53,208.49,7.95]
[1759128717763,7.72,208.52,208.49,7.95]
[1759128718762,12.0344,208.53,208.49,7.95]
[1759128720465,7.72,208.52,208.49,7.95]
[1759128720668,7.72,208.52,208.45,27.58804658]
[1759128720864,7.72,208.51,208.45,14.29123491]
[1759128721061,1.29352573,208.5,208.43,5.34681167]
[1759128721367,4.3153,208.48,208.42,130.31681167]
[1759128721566,7.72,208.49,208.42,7.95]
[1759128721861,7.72,208.49,208.4,125.71306856]
[1759128722060,68.41502573,208.5,208.4,120.36625689]
[1759128722368,67.1142,208.52,208.4,120.36625689]
[1759128722369,12.036,208.45,208.4,134.58177761]
[1759128722665,12.036,208.45,208.41,7.95]
[1759128723366,7.72,208.44,208.41,7.95]
[1759128726072,9.01352573,208.46,208.37,9.24352573]
[1759128726269,9.01352573,208.46,208.38,117.02]
[1759128726763,4.3164,208.43,208.38,117.02]
[1759128727263,4.3164,208.43,208.39,7.95]
[1759128727465,12.0364,208.43,208.39,7.95]
[1759128727666,12.0364,208.43,208.38,131.4513065]
[1759128727867,12.0364,208.43,208.39,7.95]
[1759128728069,12.0364,208.43,208.38,131.4513065]
[1759128728265,12.0364,208.43,208.39,7.95]
[1759128728470,12.0364,208.43,208.38,131.4513065]
[1759128728670,7.72,208.42,208.38,139.4013065]
[1759128728870,12.0366,208.42,208.38,139.4013065]
[1759128729264,12.0366,208.42,208.39,7.95]
[1759128729471,4.3166,208.42,208.38,117.04]
[1759128729674,4.3161,208.44,208.39,7.95]
[1759128729873,7.72,208.43,208.39,7.95]
[1759128730172,7.72,208.43,208.38,124.99]
[1759128730374,7.72,208.43,208.37,15.89245191]
[1759128730575,7.72,208.43,208.39,7.95]
[1759128730874,7.72,208.43,208.38,117.04]
[1759128731174,4.3161,208.44,208.38,7.95]
[1759128731473,4.3161,208.44,208.4,7.95]
[1759128731675,4.3161,208.44,208.39,118.33352573]
[1759128731975,4.3161,208.44,208.4,7.95]
[1759128732368,12.0361,208.44,208.4,7.95]
[1759128732974,12.0361,208.44,208.4,124.99]
[1759128733175,12.0361,208.44,208.4,124.67]
[1759128733575,7.98,208.43,208.4,7.63]
[1759128734480,4.3161,208.44,208.38,7.63]
[1759128734679,4.3161,208.44,208.39,117.04]
[1759128735069,4.3161,208.44,208.37,15.98317033]
[1759128735270,4.3161,208.44,208.38,124.67]
[1759128735774,4.3161,208.44,208.38,117.04]
[1759128735970,4.3161,208.44,208.39,7.63]
[1759128736376,4.3161,208.44,208.38,117.04]
[1759128736777,4.3161,208.44,208.39,7.63]
[1759128736971,4.3161,208.44,208.38,117.04]
[1759128737166,4.3161,208.44,208.39,7.63]
[1759128737373,4.3157,208.46,208.4,117.04]
[1759128737770,4.3157,208.46,208.38,7.63]
[1759128737971,4.3157,208.46,208.41,117.04]
[1759128738171,4.3157,208.46,208.42,117.04]
[1759128738574,4.3157,208.46,208.43,7.63]
[1759128739480,4.3157,208.46,208.39,4.3169]
[1759128739678,4.3157,208.46,208.41,7.63]
[1759128739883,4.3153,208.48,208.42,117.04]
[1759128740478,4.3153,208.48,208.43,7.63]
[1759128740783,4.3153,208.48,208.42,117.04]
[1759128741378,4.3153,208.48,208.43,7.63]
[1759128741778,4.3153,208.48,208.41,4.3165]
[1759128742076,4.3153,208.48,208.42,7.63]
[1759128742677,4.3153,208.48,208.43,7.63]
[1759128742877,7.98,208.51,208.43,7.63]
[1759128742878,4.3149,208.5,208.43,7.63]
[1759128743684,4.3149,208.5,208.43,11.9461]
[1759128743874,4.3149,208.5,208.43,4.3161]
[1759128744077,4.3149,208.5,208.44,7.59]
[1759128746373,7.98,208.51,208.44,7.59]
[1759128746580,7.55,208.54,208.46,7.59]
[1759128747580,11.864,208.54,208.46,11.9055]
[1759128747776,2.02490057,208.58,208.47,7.59]
[1759128747977,7.55,208.57,208.48,7.59]
[1759128748182,7.55,208.61,208.49,7.59]
[1759128748690,74.6378,208.6,208.49,7.59]
[1759128748987,67.091,208.59,208.49,7.59]
[1759128749284,7.55,208.58,208.49,7.59]
[1759128749784,67.0977,208.57,208.45,9.61490057]
[1759128749988,67.0977,208.57,208.45,7.59]
[1759128749989,7.55,208.56,208.45,7.59]
[1759128750892,7.55,208.56,208.46,7.59]
[1759128751286,4.314,208.55,208.46,7.59]
[1759128751487,7.55,208.57,208.46,7.59]
[1759128752794,7.55,208.52,208.43,7.59]
[1759128753583,11.8646,208.52,208.43,7.59]
[1759128753890,67.1176,208.51,208.41,5.34681167]
[1759128754191,7.55,208.45,208.39,7.59]
[1759128754396,7.55,208.45,208.35,7.59]
[1759128754588,74.6861,208.45,208.35,7.59]
[1759128754893,76.71100057,208.45,208.35,7.59]
[1759128755698,11.8668,208.41,208.35,7.59]
[1759128757703,4.3162,208.43,208.35,7.59]
[1759128759201,67.1432,208.43,208.35,7.59]
[1759128759406,67.1432,208.43,208.3,114.60025566]
[1759128759407,7.55,208.42,208.31,7.59]
[1759128759610,9.57490057,208.42,208.31,21.63315394]
[1759128759902,7.55,208.41,208.31,7.59]
[1759128761201,7.55,208.41,208.31,4.3187]
[1759128761399,7.55,208.41,208.32,7.59]
[1759128761604,7.55,208.41,208.32,11.9083]
[1759128761804,7.55,208.41,208.33,7.59]
[1759128762209,13.89090057,208.45,208.34,62.0]
[1759128762408,13.89090057,208.45,208.35,7.59]
[1759128765009,11.866,208.45,208.36,4.3177]
[1759128765198,7.55,208.45,208.36,4.3177]
[1759128765403,7.55,208.45,208.38,4.3173]
[1759128765598,7.55,208.45,208.39,7.59]
[1759128774113,7.27,208.49,208.39,2.02490057]
[1759128774316,7.27,208.49,208.4,8.01]
[1759128775214,4.3142,208.53,208.43,8.01]
[1759128775517,7.27,208.52,208.43,8.01]
[1759128776610,7.27,208.52,208.43,12.3261]
[1759128777915,7.27,208.52,208.44,4.3159]
[1759128778118,7.27,208.52,208.43,8.01]
[1759128778914,7.27,208.52,208.46,4.3154]
[1759128779117,7.27,208.56,208.46,8.01]
[1759128780410,7.27,208.56,208.46,5.34681167]
[1759128780706,7.27,208.56,208.47,8.01]
[1759128780911,7.27,208.56,208.44,5.34681167]
[1759128781106,7.27,208.55,208.43,8.01]
[1759128781418,2.02490057,208.51,208.39,8.01]
[1759128781609,7.27,208.5,208.39,8.01]
[1759128782614,4.3154,208.47,208.39,12.327]
[1759128782807,7.27,208.46,208.39,12.327]
[1759128783816,7.27,208.46,208.39,8.01]
[1759128784013,2.02490057,208.48,208.35,8.01]
[1759128784215,7.27,208.47,208.35,8.01]
[1759128784716,7.27,208.42,208.35,8.01]
[1759128787321,4.3161,208.44,208.36,8.01]
[1759128787721,4.3161,208.44,208.36,12.3275]
[1759128788924,7.27,208.43,208.36,12.3275]
[1759128789827,7.27,208.43,208.36,8.01]
[1759128795531,7.27,208.43,208.35,4.3177]
[1759128796534,74.8589,208.44,208.32,7.94]
[1759128796832,7.72,208.41,208.32,7.94]
[1759128797033,4.3176,208.37,208.31,14.33826892]
[1759128797233,12.0376,208.37,208.3,115.43539887]
[1759128797435,2.02490057,208.39,208.3,114.60025566]
[1759128797834,2.02490057,208.39,208.29,7.94]
[1759128797835,7.72,208.38,208.29,7.94]
[1759128798335,7.72,208.33,208.25,14.12216538]
[1759128798535,7.72,208.33,208.25,28.82888538]
[1759128798736,7.72,208.33,208.25,13.28681167]
[1759128799036,7.72,208.33,208.26,4.3196]
[1759128799929,9.01755714,208.37,208.28,7.94]
[1759128800235,9.01755714,208.35,208.28,7.94]
[1759128801133,7.72,208.32,208.25,14.64695115]
[1759128801437,12.0387,208.32,208.24,7.94]
[1759128802536,13.33625714,208.32,208.24,7.94]
[1759128803037,1.29755714,208.34,208.26,7.94]
[1759128803440,7.72,208.33,208.26,12.2596]
[1759128804936,1.29755714,208.32,208.23,62.83547404]
[1759128805131,7.28,208.31,208.23,0.83547404]
[1759128805337,1.29755714,208.35,208.26,8.04]
[1759128805539,67.1529,208.4,208.23,10.17303118]
[1759128805540,7.28,208.32,208.23,10.17303118]
[1759128806343,11.5987,208.32,208.23,14.49323118]
[1759128806836,11.5987,208.32,208.23,28.9536533]
[1759128807031,11.5987,208.32,208.25,4.32]
[1759128807235,7.28,208.32,208.25,5.61755714]
[1759128807431,12.89575714,208.35,208.26,8.04]
[1759128807835,12.89575714,208.35,208.27,4.3194]
[1759128808240,12.89575714,208.35,208.26,8.04]
[1759128808837,12.89575714,208.35,208.27,4.3195]
[1759128809038,7.28,208.35,208.28,8.04]
[1759128810245,7.28,208.35,208.28,13.65675714]
[1759128810741,11.5972,208.39,208.3,8.04]
[1759128810942,11.5972,208.39,208.31,1.29755714]
[1759128812547,11.5972,208.39,208.31,5.61625714]
[1759128813142,7.28,208.37,208.3,8.04]
[1759128813343,8.57755714,208.37,208.26,9.33755714]
[1759128813546,1.29755714,208.35,208.26,9.33755714]
[1759128813752,7.28,208.34,208.26,9.33755714]
[1759128815542,7.28,208.34,208.26,13.65715714]
[1759128816148,7.28,208.34,208.26,12.3596]
[1759128816351,7.28,208.34,208.27,1.29755714]
[1759128816750,7.28,208.34,208.26,8.04]
[1759128817056,7.28,208.34,208.23,16.5934533]
[1759128817751,4.3186,208.32,208.23,20.9137533]
[1759128818450,7.28,208.31,208.23,20.9137533]
[1759128819253,4.3182,208.34,208.26,1.29755714]
[1759128820652,4.3182,208.34,208.27,4.3196]
[1759128825263,4.3182,208.34,208.28,8.04]
[1759128825459,4.3177,208.37,208.29,8.04]
[1759128825756,7.28,208.38,208.31,8.04]
[1759128826064,7.28,208.38,208.32,5.61595714]
[1759128826959,4.3168,208.41,208.34,1.29755714]
[1759128827668,7.28,208.42,208.35,8.04]
[1759128828059,7.28,208.42,208.36,1.29755714]
[1759128828259,4.3162,208.44,208.36,1.29755714]
[1759128828462,11.5957,208.46,208.38,1.29755714]
[1759128828663,11.5957,208.46,208.37,8.04]
[1759128828664,8.57755714,208.46,208.37,8.04]
[1759128828864,7.28,208.43,208.34,1.29755714]
[1759128829160,7.28,208.43,208.34,9.33755714]
[1759128829556,67.1195,208.51,208.4,9.33755714]
[1759128829762,68.41705714,208.51,208.4,9.33755714]
[1759128829963,7.28,208.5,208.4,9.33755714]
[1759128830266,7.28,208.47,208.4,8.04]
[1759128830465,7.28,208.55,208.44,1.29755714]
[1759128830667,7.28,208.55,208.46,1.29755714]
[1759128830874,7.28,208.53,208.43,9.33755714]
[1759128831076,7.28,208.51,208.43,9.33755714]
[1759128831869,8.57755714,208.47,208.35,8.04]
[1759128832074,7.28,208.47,208.39,1.29755714]
[1759128832778,4.3159,208.45,208.39,1.29755714]
[1759128835578,11.5955,208.47,208.39,1.29755714]
[1759128840278,4.316,208.45,208.39,1.29755714]
[1759128840484,7.96,208.44,208.34,4.3181]
[1759128840783,7.96,208.44,208.36,7.73]
[1759128840976,9.25755714,208.48,208.39,9.02755714]
[1759128841282,7.96,208.48,208.41,1.29755714]
[1759128842080,67.0964,208.58,208.45,1.29755714]
[1759128842280,7.96,208.54,208.45,1.29755714]
[1759128842483,7.96,208.54,208.46,12.0455]
[1759128842882,7.96,208.54,208.48,1.29755714]
[1759128845280,7.96,208.54,208.46,1.29755714]
[1759128845689,67.117,208.52,208.37,5.34681167]
[1759128845882,7.96,208.5,208.4,1.29755714]
[1759128846690,7.96,208.47,208.4,1.29755714]
[1759128848398,12.2757,208.47,208.4,1.29755714]
[1759128849796,7.96,208.47,208.4,1.29755714]
[1759128850997,7.96,208.47,208.4,9.02755714]
[1759128851294,7.96,208.52,208.46,1.29755714]
[1759128852293,7.96,208.52,208.48,1.29755714]
[1759128852690,7.96,208.52,208.48,8.85755714]
[1759128853996,7.96,208.52,208.47,4.3155]
[1759128853997,7.88,208.54,208.43,7.56]
[1759128854193,7.88,208.54,208.45,1.29755714]
[1759128854394,9.17755714,208.54,208.45,1.29755714]
[1759128854796,4.3145,208.52,208.45,1.29755714]
[1759128855092,7.88,208.51,208.43,1.29755714]
[1759128855298,7.88,208.51,208.41,1.29755714]
[1759128855603,7.88,208.51,208.43,1.29755714]
[1759128856001,4.315,208.5,208.43,1.29755714]
[1759128856203,7.88,208.51,208.43,1.29755714]
[1759128857600,7.88,208.51,208.44,4.3161]
[1759128857801,7.88,208.51,208.43,1.29755714]
[1759128859301,12.1949,208.51,208.44,4.316]
[1759128859996,7.88,208.51,208.43,1.29755714]
[1759128860198,7.88,208.48,208.41,4.3166]
[1759128860397,7.88,208.48,208.37,9.58433203]
[1759128861703,7.88,208.46,208.38,4.3173]
[1759128861903,7.88,208.46,208.37,9.58433203]
[1759128862103,4.316,208.45,208.37,9.58433203]
[1759128862304,7.88,208.44,208.37,7.56]
[1759128863301,7.88,208.44,208.37,11.8774]
[1759128866111,7.88,208.44,208.37,7.56]
[1759128866297,7.88,208.44,208.38,4.3172]
[1759128866502,7.88,208.44,208.37,9.58433203]
[1759128867408,7.88,208.44,208.4,11.5968]
[1759128868108,4.3156,208.47,208.4,4.3168]
[1759128871411,7.8,208.48,208.4,4.3168]
[1759128874013,7.8,208.48,208.41,4.3166]
[1759128874218,7.8,208.48,208.4,12.62681167]
[1759128875116,7.8,208.48,208.44,7.28]
[1759128875316,7.8,208.52,208.44,7.28]
[1759128876111,7.8,208.52,208.45,4.3158]
[1759128876312,7.8,208.52,208.45,7.28]
[1759128876511,7.8,208.52,208.45,12.62681167]
[1759128876911,7.8,208.52,208.48,7.28]
[1759128877117,1.24057953,208.55,208.46,7.3711437]
[1759128877318,1.24057953,208.55,208.47,7.28]
[1759128877511,5.55467953,208.55,208.47,7.28]
[1759128877711,7.8,208.54,208.47,7.28]
[1759128879413,7.8,208.54,208.47,21.88057561]
[1759128880010,7.8,208.54,208.47,7.28]
[1759128881719,1.24057953,208.55,208.47,9.30433203]
[1759128882315,7.8,208.58,208.48,7.28]
[1759128882521,7.8,208.58,208.49,7.28]
[1759128883121,7.8,208.58,208.5,2.02433203]
[1759128883322,7.8,208.58,208.52,4.3143]
[1759128885420,7.8,208.58,208.53,4.3142]
[1759128885626,7.8,208.58,208.54,7.28]
[1759128889224,4.3128,208.61,208.53,4.3142]
[1759128889525,12.1131,208.6,208.51,4.3148]
[1759128889825,7.8,208.6,208.5,9.30433203]
[1759128890125,7.8,208.6,208.5,7.28]
[1759128890724,12.1135,208.58,208.5,7.28]
[1759128892825,12.1135,208.58,208.5,11.5949]
[1759128893328,7.8,208.56,208.48,4.3153]
[1759128894018,7.8,208.56,208.5,4.3149]
[1759128895117,7.8,208.56,208.5,11.7449]
[1759128896636,7.8,208.56,208.51,4.3147]
[1759128896927,7.8,208.56,208.52,7.43]
[1759128898735,7.78,208.58,208.52,7.43]
[1759128899032,69.10963203,208.62,208.48,11.7453]
[1759128899433,7.78,208.61,208.48,11.7453]
[1759128899935,7.78,208.56,208.49,4.3151]
[1759128900640,12.094,208.56,208.48,7.43]
[1759128900840,7.78,208.55,208.47,18.52203199]
[1759128901638,12.0942,208.55,208.47,18.52203199]
[1759128901833,7.78,208.56,208.45,11.746]
[1759128902039,74.8881,208.55,208.43,2.02433203]
[1759128902239,7.78,208.54,208.41,7.43]
[1759128902843,2.02433203,208.57,208.4,2.02433203]
[1759128903138,7.78,208.56,208.43,9.45433203]
[1759128903344,7.78,208.56,208.44,7.43]
[1759128903546,7.78,208.53,208.44,11.7461]
[1759128904146,12.0946,208.53,208.45,4.3159]
[1759128907150,7.78,208.53,208.46,4.3158]
[1759128911050,7.78,208.53,208.47,4.3156]
[1759128911349,7.78,208.53,208.48,7.43]
[1759128911552,7.78,208.53,208.46,7.43]
[1759128912552,7.78,208.53,208.5,4.3149]
[1759128912753,7.78,208.53,208.5,12.1249]
[1759128915856,7.78,208.53,208.5,7.81]
[1759128916157,7.75,208.57,208.45,7.81]
[1759128916651,4.3146,208.53,208.46,4.3159]
[1759128916853,7.75,208.52,208.46,4.3159]
[1759128917157,7.75,208.52,208.42,5.34681167]
[1759128917359,2.02433203,208.54,208.41,13.15681167]
[1759128918161,7.75,208.49,208.43,4.3164]
[1759128919658,7.75,208.49,208.41,12.1269]
[1759128920261,9.04584422,208.49,208.41,12.1269]
[1759128920659,4.3156,208.48,208.41,12.1269]
[1759128921556,12.0659,208.47,208.41,7.81]
[1759128921753,7.75,208.47,208.41,7.81]
[1759128922066,4.3165,208.43,208.38,7.81]
[1759128922362,7.75,208.42,208.38,7.81]
[1759128923061,4.3165,208.43,208.38,7.81]
[1759128923262,7.75,208.42,208.35,15.45432542]
[1759128923460,7.75,208.42,208.34,13.42424422]
[1759128924463,12.0669,208.42,208.34,9.10584422]
[1759128925060,12.0669,208.42,208.34,7.81]
[1759128926054,7.75,208.42,208.35,4.3181]
[1759128926261,7.75,208.42,208.36,7.63]
[1759128927556,7.75,208.42,208.36,8.92584422]
[1759128928766,7.75,208.42,208.34,1.29584422]
[1759128929766,12.0669,208.42,208.34,1.29584422]
[1759128932870,7.89,208.39,208.33,7.63]
[1759128933164,7.89,208.38,208.29,1.29584422]
[1759128933558,1.29584422,208.39,208.29,1.29584422]
[1759128933764,7.89,208.36,208.27,8.92584422]
[1759128933965,7.89,208.34,208.27,7.63]
[1759128934270,4.3186,208.33,208.27,7.63]
[1759128934466,7.89,208.32,208.24,13.24624422]
[1759128934670,7.89,208.3,208.24,8.92584422]
[1759128934859,7.89,208.3,208.24,7.63]
[1759128935868,12.2094,208.3,208.24,7.63]
[1759128936066,12.2094,208.3,208.21,11.9509]
[1759128936264,12.2094,208.3,208.22,1.29584422]
[1759128937468,12.2094,208.3,208.21,11.9509]
[1759128937663,12.2094,208.3,208.22,1.29584422]
[1759128937870,12.2094,208.3,208.24,7.63]
[1759128937871,7.89,208.3,208.24,7.63]
[1759128938668,7.89,208.33,208.25,4.3202]
[1759128939168,7.89,208.33,208.27,1.29584422]
[1759128940470,7.89,208.33,208.25,1.29584422]
[1759128940772,9.18584422,208.33,208.23,1.29584422]
[1759128941365,4.3193,208.3,208.23,1.29584422]
[1759128941572,12.2093,208.3,208.23,1.29584422]
[1759128942170,12.2093,208.3,208.2,22.37334509]
[1759128942362,12.2093,208.3,208.23,8.92584422]
[1759128942562,7.89,208.3,208.23,8.92584422]
[1759128942765,7.89,208.35,208.25,8.92584422]
[1759128942971,7.89,208.35,208.27,1.29584422]
[1759128943572,4.3184,208.34,208.27,1.29584422]
[1759128944469,7.89,208.35,208.29,1.29584422]
[1759128944670,7.89,208.35,208.3,1.29584422]
[1759128944976,7.89,208.35,208.31,7.63]
[1759128947676,4.3175,208.39,208.31,7.63]
[1759128947879,12.2075,208.39,208.32,1.29584422]
[1759128950287,12.2075,208.39,208.33,1.29584422]
[1759128950987,7.89,208.39,208.35,1.29584422]
[1759128951193,7.89,208.39,208.35,8.92584422]
[1759128951389,4.317,208.41,208.35,8.92584422]
[1759128951585,4.317,208.41,208.35,1.29584422]
[1759128951786,7.89,208.4,208.35,1.29584422]
[1759128952085,4.317,208.41,208.35,1.29584422]
[1759128952595,7.89,208.4,208.35,1.29584422]
[1759128952792,4.317,208.41,208.35,1.29584422]
[1759128953892,12.337,208.41,208.35,1.29584422]
[1759128954895,4.3173,208.4,208.35,1.29584422]
[1759128955095,8.02,208.39,208.35,1.29584422]
[1759128956093,8.02,208.39,208.35,7.81]
[1759128956297,8.02,208.39,208.35,9.10584422]
[1759128957792,8.02,208.42,208.27,7.81]
[1759128957993,8.02,208.42,208.33,1.29584422]
[1759128958395,4.317,208.41,208.35,1.29584422]
[1759128958588,8.02,208.42,208.35,9.10584422]
[1759128959492,12.3369,208.42,208.35,9.10584422]
[1759128961288,4.3171,208.41,208.35,9.10584422]
[1759128961594,75.1701,208.42,208.31,7.81]
[1759128961799,1.29584422,208.39,208.3,1.29584422]
[1759128962097,12.3376,208.38,208.3,1.29584422]
[1759128962300,8.02,208.38,208.32,1.29584422]
[1759128962596,8.02,208.38,208.34,9.10584422]
[1759128964003,4.3172,208.4,208.34,9.10584422]
[1759128964794,8.02,208.39,208.34,9.10584422]
[1759128964994,12.3372,208.4,208.34,9.10584422]
[1759128965903,12.3372,208.4,208.28,67.1946]
[1759128965904,8.02,208.38,208.32,1.29584422]
[1759128966295,8.02,208.38,208.31,4.3189]
[1759128966599,8.02,208.38,208.3,9.10584422]
[1759128966796,8.02,208.38,208.3,7.81]
[1759128967003,1.29584422,208.37,208.28,5.61524422]
[1759128967197,4.3185,208.34,208.28,1.29584422]
[1759128967502,12.3385,208.34,208.28,1.29584422]
[1759128968207,12.3385,208.34,208.27,7.81]
[1759128968400,12.3385,208.34,208.27,9.10584422]
[1759128968597,12.3385,208.34,208.27,13.42554422]
[1759128968798,8.02,208.34,208.23,5.34681167]
[1759128969103,8.02,208.32,208.23,7.81]
[1759128969300,8.02,208.3,208.23,7.81]
[1759128970100,8.02,208.3,208.2,1.29584422]
[1759128970403,8.02,208.28,208.2,1.29584422]
[1759128971605,4.3198,208.27,208.2,1.29584422]
[1759128974210,8.02,208.28,208.21,4.321]
[1759128974610,8.02,208.28,208.22,7.66]
[1759128975509,8.02,208.28,208.2,1.29584422]
[1759128975910,4.32,208.26,208.19,8.49560443]
[1759128976105,7.49,208.25,208.19,8.49560443]
[1759128976506,7.49,208.25,208.21,7.66]
[1759128977515,7.49,208.28,208.21,7.66]
[1759128978214,4.3198,208.27,208.21,7.66]
[1759128980413,7.49,208.28,208.21,7.66]
[1759128982113,7.49,208.28,208.22,4.3209]
[1759128982812,4.319,208.31,208.23,11.9805]
[1759128983017,4.319,208.31,208.23,7.66]
[1759128983215,7.49,208.3,208.23,7.66]
[1759128984617,7.49,208.3,208.23,11.9805]
[1759128985413,4.3194,208.29,208.23,7.66]
[1759128990523,7.49,208.3,208.23,7.66]
[1759128992126,11.8094,208.3,208.23,7.66]
[1759128994523,11.8094,208.3,208.23,11.9805]
[1759128995819,7.49,208.3,208.24,7.55]
[1759128998727,11.8093,208.3,208.24,7.55]
[1759129000025,11.8093,208.3,208.23,4.3205]
[1759129000026,67.1859,208.31,208.19,6.1824161]
[1759129000231,2.0287819,208.26,208.17,7.55]
[1759129000525,7.63,208.25,208.17,7.55]
[1759129001123,11.9508,208.23,208.17,7.55]
[1759129003727,7.63,208.23,208.17,7.55]
[1759129004827,74.8313,208.26,208.14,21.80344883]
[1759129005132,7.63,208.25,208.14,7.55]
[1759129006529,4.321,208.22,208.14,11.8724]
[1759129006733,11.951,208.22,208.14,11.8724]
[1759129007431,7.63,208.22,208.15,4.3221]
[1759129007628,7.63,208.22,208.16,7.55]